[Event "*** Titled Tuesday Blitz"]
[Site "Chess.com"]
[Date "2019.04.02"]
[Round "10"]
[White "NikolaN98"]
[Black "DanielMieles1985"]
[Result "0-1"]
[WhiteElo "2523"]
[BlackElo "2662"]
[TimeControl "180+2"]
[EndTime "16:15:59 PDT"]
[Termination "DanielMieles1985 won by resignation"]

1. e4 {[%clk 0:03:01.1]} 1... e5 {[%clk 0:03:00.1]} 2. Nf3 {[%clk 0:03:01.7]}
2... Nc6 {[%clk 0:03:01.2]} 3. Bc4 {[%clk 0:03:01.8]} 3... Bc5 {[%clk
0:03:01.4]} 4. O-O {[%clk 0:03:01.5]} 4... Nf6 {[%clk 0:03:02.4]} 5. d3 {[%clk
0:03:02.3]} 5... d6 {[%clk 0:03:03]} 6. c3 {[%clk 0:03:02.1]} 6... O-O {[%clk
0:03:02.7]} 7. b4 {[%clk 0:03:00.1]} 7... Bb6 {[%clk 0:03:03.4]} 8. a4 {[%clk
0:03:01.3]} 8... a5 {[%clk 0:03:05.3]} 9. b5 {[%clk 0:03:02]} 9... Ne7 {[%clk
0:03:06.8]} 10. Bg5 {[%clk 0:03:01.4]} 10... Ng6 {[%clk 0:03:08]} 11. Nh4 {[%clk
0:02:53.4]} 11... Kh8 {[%clk 0:03:08.2]} 12. Kh1 {[%clk 0:02:41.2]} 12... Nf4
{[%clk 0:03:05.1]} 13. Qd2 {[%clk 0:02:06]} 13... h6 {[%clk 0:03:04.4]} 14. Bxf4
{[%clk 0:02:06.3]} 14... exf4 {[%clk 0:03:05.4]} 15. Qxf4 {[%clk 0:01:29.6]}
15... Nh5 {[%clk 0:02:59]} 16. Qf3 {[%clk 0:01:05.5]} 16... Qxh4 {[%clk
0:02:58.4]} 17. d4 {[%clk 0:01:06.5]} 17... Bg4 {[%clk 0:02:56.3]} 18. Qe3
{[%clk 0:01:03.6]} 18... Rae8 {[%clk 0:02:56]} 19. Nd2 {[%clk 0:01:04.1]} 19...
f5 {[%clk 0:02:54.9]} 20. g3 {[%clk 0:00:39.1]} 20... Qh3 {[%clk 0:02:42.1]} 21.
f4 {[%clk 0:00:37.1]} 21... fxe4 {[%clk 0:02:38.3]} 22. Kg1 {[%clk 0:00:23]}
22... Be6 {[%clk 0:02:28.3]} 23. Be2 {[%clk 0:00:16]} 23... Nf6 {[%clk 0:02:23]}
24. Rfe1 {[%clk 0:00:11.8]} 24... Nd5 {[%clk 0:02:19.9]} 25. Qxe4 {[%clk
0:00:09]} 25... Nxc3 {[%clk 0:02:21.2]} 26. Qd3 {[%clk 0:00:09.9]} 26... Bd5
{[%clk 0:02:22.4]} 27. Bf3 {[%clk 0:00:10]} 27... Bxf3 {[%clk 0:02:17]} 28. Nxf3
{[%clk 0:00:10]} 28... Nd5 {[%clk 0:02:12.6]} 29. Nh4 {[%clk 0:00:10.3]} 29...
Nxf4 {[%clk 0:02:08.7]} 30. Rxe8 {[%clk 0:00:07.8]} 30... Rxe8 {[%clk
0:02:06.6]} 31. Qf3 {[%clk 0:00:04.7]} 31... Bxd4+ {[%clk 0:02:05.3]} 32. Kh1
{[%clk 0:00:05.9]} 32... Bxa1 {[%clk 0:02:06]} 0-1

[Event "*** Titled Tuesday Blitz"]
[Site "Chess.com"]
[Date "2019.04.02"]
[Round "10"]
[White "Sanyura"]
[Black "KarstenHansch"]
[Result "1-0"]
[WhiteElo "2446"]
[BlackElo "2341"]
[TimeControl "180+2"]
[EndTime "16:16:02 PDT"]
[Termination "Sanyura won by checkmate"]

1. e4 {[%clk 0:03:01.9]} 1... c5 {[%clk 0:02:58.1]} 2. Nf3 {[%clk 0:03:02.4]}
2... d6 {[%clk 0:02:59.5]} 3. d4 {[%clk 0:03:02.7]} 3... cxd4 {[%clk 0:03:01.4]}
4. Nxd4 {[%clk 0:03:04.3]} 4... Nf6 {[%clk 0:03:02.8]} 5. Nc3 {[%clk 0:03:05.8]}
5... a6 {[%clk 0:03:04.1]} 6. h3 {[%clk 0:03:07.3]} 6... e6 {[%clk 0:03:04.5]}
7. g4 {[%clk 0:03:07.5]} 7... Be7 {[%clk 0:03:04]} 8. Be3 {[%clk 0:03:07.3]}
8... b5 {[%clk 0:03:04]} 9. a3 {[%clk 0:03:06.1]} 9... Bb7 {[%clk 0:03:04.8]}
10. Bg2 {[%clk 0:03:07.6]} 10... Nc6 {[%clk 0:03:02.2]} 11. Qe2 {[%clk
0:03:06.7]} 11... Nd7 {[%clk 0:02:52.9]} 12. O-O {[%clk 0:03:04.1]} 12... Qc7
{[%clk 0:02:50.1]} 13. f4 {[%clk 0:03:04.3]} 13... Nxd4 {[%clk 0:02:49.8]} 14.
Bxd4 {[%clk 0:03:05.2]} 14... e5 {[%clk 0:02:50.3]} 15. Be3 {[%clk 0:03:04.4]}
15... exf4 {[%clk 0:02:50.3]} 16. Bxf4 {[%clk 0:03:05.9]} 16... Ne5 {[%clk
0:02:51.5]} 17. Bxe5 {[%clk 0:03:00.7]} 17... dxe5 {[%clk 0:02:52.1]} 18. Nd5
{[%clk 0:03:02.3]} 18... Qc5+ {[%clk 0:02:51]} 19. Kh1 {[%clk 0:03:02.8]} 19...
Rc8 {[%clk 0:02:48.1]} 20. Rf2 {[%clk 0:02:59.4]} 20... Bh4 {[%clk 0:02:46]} 21.
Rf5 {[%clk 0:02:57.7]} 21... f6 {[%clk 0:02:41.5]} 22. g5 {[%clk 0:02:45.4]}
22... Bxd5 {[%clk 0:02:34.5]} 23. exd5 {[%clk 0:02:44.1]} 23... Qxc2 {[%clk
0:02:34.6]} 24. Qg4 {[%clk 0:02:37.1]} 24... Bxg5 {[%clk 0:02:30.2]} 25. Rxg5
{[%clk 0:02:31.6]} 25... fxg5 {[%clk 0:02:19.4]} 26. Qe6+ {[%clk 0:02:32.5]}
26... Kd8 {[%clk 0:02:20.5]} 27. Qd6+ {[%clk 0:02:26.4]} 27... Ke8 {[%clk
0:02:21.6]} 28. Qxe5+ {[%clk 0:02:26.7]} 28... Kd7 {[%clk 0:02:19.3]} 29. Qxg7+
{[%clk 0:02:01.2]} 29... Kd6 {[%clk 0:02:19]} 30. Rf1 {[%clk 0:01:47.2]} 30...
Rhe8 {[%clk 0:02:02.7]} 31. b4 {[%clk 0:01:33.1]} 31... Re7 {[%clk 0:01:40.6]}
32. Qxg5 {[%clk 0:01:09.5]} 32... Qe2 {[%clk 0:01:39.1]} 33. Rf6+ {[%clk
0:01:01.9]} 33... Kd7 {[%clk 0:01:29.7]} 34. Qf5+ {[%clk 0:01:02.7]} 34... Kc7
{[%clk 0:01:23.7]} 35. Rc6+ {[%clk 0:01:03.2]} 35... Kb7 {[%clk 0:01:20.9]} 36.
Qxc8+ {[%clk 0:01:03.3]} 36... Ka7 {[%clk 0:01:22.3]} 37. Rxa6# {[%clk
0:01:04.3]} 1-0

[Event "*** Titled Tuesday Blitz"]
[Site "Chess.com"]
[Date "2019.04.02"]
[Round "10"]
[White "Chessialist"]
[Black "PaulfromSPb"]
[Result "0-1"]
[WhiteElo "2517"]
[BlackElo "2640"]
[TimeControl "180+2"]
[EndTime "16:16:13 PDT"]
[Termination "PaulfromSPb won by resignation"]

1. e4 {[%clk 0:03:01.9]} 1... c5 {[%clk 0:02:52.6]} 2. Nf3 {[%clk 0:03:02.6]}
2... d6 {[%clk 0:02:53.7]} 3. d4 {[%clk 0:03:03.5]} 3... cxd4 {[%clk 0:02:55.6]}
4. Qxd4 {[%clk 0:03:05.1]} 4... a6 {[%clk 0:02:55.4]} 5. h3 {[%clk 0:03:05.3]}
5... Nc6 {[%clk 0:02:52.3]} 6. Qe3 {[%clk 0:03:05.9]} 6... Nf6 {[%clk
0:02:52.7]} 7. Be2 {[%clk 0:03:06.7]} 7... d5 {[%clk 0:02:52.3]} 8. e5 {[%clk
0:03:00.6]} 8... d4 {[%clk 0:02:53.1]} 9. Qf4 {[%clk 0:02:25.7]} 9... Nd5 {[%clk
0:02:48.7]} 10. Qe4 {[%clk 0:02:24.3]} 10... f5 {[%clk 0:02:33.2]} 11. exf6
{[%clk 0:00:51.9]} 11... Nxf6 {[%clk 0:02:31.1]} 12. Qd3 {[%clk 0:00:52.7]}
12... e5 {[%clk 0:02:30.8]} 13. Qd1 {[%clk 0:00:40.3]} 13... e4 {[%clk
0:02:29.1]} 14. Nfd2 {[%clk 0:00:41.5]} 14... Bc5 {[%clk 0:02:26.9]} 15. O-O
{[%clk 0:00:41.6]} 15... O-O {[%clk 0:02:25.7]} 16. Nb3 {[%clk 0:00:42.7]} 16...
Ba7 {[%clk 0:02:26.3]} 17. Bg5 {[%clk 0:00:43.1]} 17... Bf5 {[%clk 0:02:15.5]}
18. N1d2 {[%clk 0:00:43.8]} 18... h6 {[%clk 0:02:11.8]} 19. Bh4 {[%clk
0:00:44.6]} 19... Rc8 {[%clk 0:02:08.5]} 20. Kh1 {[%clk 0:00:41.4]} 20... Kh8
{[%clk 0:02:06.8]} 21. g4 {[%clk 0:00:38.1]} 21... Bh7 {[%clk 0:02:06]} 22. Bg3
{[%clk 0:00:39.3]} 22... Nd5 {[%clk 0:01:58.7]} 23. Nc4 {[%clk 0:00:38.2]} 23...
Nf4 {[%clk 0:01:56]} 24. Qd2 {[%clk 0:00:31.6]} 24... Nxe2 {[%clk 0:01:35.5]}
25. Qxe2 {[%clk 0:00:32.2]} 25... Qd5 {[%clk 0:01:36.3]} 26. Na3 {[%clk
0:00:19.4]} 26... d3 {[%clk 0:01:37]} 27. Qe1 {[%clk 0:00:11.1]} 27... e3+
{[%clk 0:01:37.8]} 28. f3 {[%clk 0:00:12.3]} 28... e2 {[%clk 0:01:36]} 0-1

[Event "*** Titled Tuesday Blitz"]
[Site "Chess.com"]
[Date "2019.04.02"]
[Round "10"]
[White "Benjoneliere44"]
[Black "mbojan"]
[Result "1/2-1/2"]
[WhiteElo "2492"]
[BlackElo "2520"]
[TimeControl "180+2"]
[EndTime "16:16:16 PDT"]
[Termination "Game drawn by agreement"]

1. d4 {[%clk 0:03:01.9]} 1... g6 {[%clk 0:03:01.9]} 2. Bf4 {[%clk 0:03:01]} 2...
Bg7 {[%clk 0:03:03.1]} 3. c3 {[%clk 0:03:02.4]} 3... d6 {[%clk 0:03:04.1]} 4. e3
{[%clk 0:03:02.4]} 4... e5 {[%clk 0:03:04.2]} 5. dxe5 {[%clk 0:03:00.6]} 5...
dxe5 {[%clk 0:03:06.1]} 6. Qxd8+ {[%clk 0:03:01.4]} 6... Kxd8 {[%clk 0:03:08]}
7. Bg3 {[%clk 0:03:02.5]} 7... c6 {[%clk 0:03:06.8]} 8. a4 {[%clk 0:02:59.7]}
8... f6 {[%clk 0:03:07.7]} 9. a5 {[%clk 0:02:59.7]} 9... Be6 {[%clk 0:03:08.3]}
10. Na3 {[%clk 0:02:59.8]} 10... Nd7 {[%clk 0:03:08.2]} 11. Bc4 {[%clk
0:03:00.3]} 11... Bxc4 {[%clk 0:03:07.4]} 12. Nxc4 {[%clk 0:03:02.2]} 12... Ne7
{[%clk 0:03:08.5]} 13. f3 {[%clk 0:03:03.1]} 13... Kc7 {[%clk 0:03:09.5]} 14. e4
{[%clk 0:03:03.4]} 14... Nc5 {[%clk 0:03:06.4]} 15. Bf2 {[%clk 0:02:53.1]} 15...
Nd3+ {[%clk 0:02:57.3]} 16. Ke2 {[%clk 0:02:53.3]} 16... Nxf2 {[%clk 0:02:50.7]}
17. Kxf2 {[%clk 0:02:55.2]} 17... Rhd8 {[%clk 0:02:51.3]} 18. Ne2 {[%clk
0:02:54.3]} 18... Nc8 {[%clk 0:02:52.2]} 19. Rhd1 {[%clk 0:02:52.8]} 19... Nd6
{[%clk 0:02:53.2]} 20. Nxd6 {[%clk 0:02:50.4]} 20... Rxd6 {[%clk 0:02:55.1]} 21.
Rxd6 {[%clk 0:02:51.2]} 21... Kxd6 {[%clk 0:02:57]} 22. Rd1+ {[%clk 0:02:49.3]}
22... Kc7 {[%clk 0:02:58.4]} 23. Nc1 {[%clk 0:02:44]} 23... Bf8 {[%clk
0:02:56.9]} 24. b4 {[%clk 0:02:42.1]} 24... b6 {[%clk 0:02:52]} 25. Nb3 {[%clk
0:02:40]} 25... Rb8 {[%clk 0:02:21]} 26. axb6+ {[%clk 0:02:37.5]} 26... axb6
{[%clk 0:02:22.9]} 27. Ke2 {[%clk 0:02:35.8]} 27... Ra8 {[%clk 0:02:22.4]} 28.
Ra1 {[%clk 0:02:35.4]} 28... Rxa1 {[%clk 0:02:21.2]} 29. Nxa1 {[%clk 0:02:37.3]}
29... b5 {[%clk 0:02:22.2]} 30. Kd3 {[%clk 0:02:32.6]} 30... Bd6 {[%clk
0:02:22.6]} 31. Nc2 {[%clk 0:02:33.5]} 31... Kd7 {[%clk 0:02:20.2]} 32. c4
{[%clk 0:02:32.9]} 32... Kc7 {[%clk 0:02:18.6]} 33. c5 {[%clk 0:02:32.5]} 33...
Be7 {[%clk 0:02:19.4]} 34. g4 {[%clk 0:02:29.4]} 34... Bf8 {[%clk 0:02:15.8]}
35. h4 {[%clk 0:02:25.9]} 35... Bh6 {[%clk 0:02:15]} 36. h5 {[%clk 0:02:25.3]}
36... Kd7 {[%clk 0:02:11.6]} 37. hxg6 {[%clk 0:02:25]} 37... hxg6 {[%clk
0:02:12.5]} 38. Ne3 {[%clk 0:02:20.6]} 38... Ke6 {[%clk 0:02:03.6]} 39. Ng2
{[%clk 0:02:13.9]} 39... Bc1 {[%clk 0:01:49.8]} 40. Kc2 {[%clk 0:02:11.3]} 40...
Bh6 {[%clk 0:01:50.1]} 41. Kd3 {[%clk 0:02:12.1]} 41... Bg5 {[%clk 0:01:50.5]}
42. Kc2 {[%clk 0:02:12.2]} 42... Kf7 {[%clk 0:01:49.7]} 43. Kd3 {[%clk
0:02:11.1]} 43... Kg7 {[%clk 0:01:47.5]} 44. Ne3 {[%clk 0:01:55.7]} 44... Bxe3
{[%clk 0:01:14.9]} 45. Kxe3 {[%clk 0:01:57.6]} 45... g5 {[%clk 0:01:15.8]} 46.
Ke2 {[%clk 0:01:56.4]} 46... Kg6 {[%clk 0:01:16.5]} 47. Kd1 {[%clk 0:01:55.7]}
47... Kh6 {[%clk 0:01:18]} 48. Kc1 {[%clk 0:01:55.8]} 48... Kh7 {[%clk
0:01:19.6]} 49. Kb1 {[%clk 0:01:56.6]} 49... Kh8 {[%clk 0:01:21.3]} 50. Ka1
{[%clk 0:01:56.1]} 50... Kg8 {[%clk 0:01:22.8]} 1/2-1/2

[Event "*** Titled Tuesday Blitz"]
[Site "Chess.com"]
[Date "2019.04.02"]
[Round "10"]
[White "TST2014"]
[Black "Gareth-Bale11"]
[Result "1-0"]
[WhiteElo "2530"]
[BlackElo "2672"]
[TimeControl "180+2"]
[EndTime "16:16:20 PDT"]
[Termination "TST2014 won by resignation"]

1. d4 {[%clk 0:03:01.9]} 1... d5 {[%clk 0:02:54.8]} 2. c4 {[%clk 0:03:03.1]}
2... e6 {[%clk 0:02:56.1]} 3. Nf3 {[%clk 0:03:03.8]} 3... Nf6 {[%clk 0:02:55.6]}
4. Nc3 {[%clk 0:03:03.9]} 4... a6 {[%clk 0:02:56.6]} 5. cxd5 {[%clk 0:03:03.8]}
5... exd5 {[%clk 0:02:56.6]} 6. Bg5 {[%clk 0:03:04.7]} 6... Be6 {[%clk 0:02:58]}
7. e3 {[%clk 0:03:04.6]} 7... Nbd7 {[%clk 0:02:58.7]} 8. Bd3 {[%clk 0:03:02.5]}
8... Bd6 {[%clk 0:02:59.1]} 9. Bf4 {[%clk 0:03:03.4]} 9... Qe7 {[%clk
0:02:58.9]} 10. O-O {[%clk 0:03:03]} 10... O-O {[%clk 0:02:59.9]} 11. Re1 {[%clk
0:02:55.6]} 11... h6 {[%clk 0:03:00.3]} 12. a3 {[%clk 0:02:53.1]} 12... c6
{[%clk 0:02:55.9]} 13. b4 {[%clk 0:02:53.7]} 13... b5 {[%clk 0:02:53.1]} 14. Nd2
{[%clk 0:02:44.8]} 14... Nb6 {[%clk 0:02:52]} 15. Nb3 {[%clk 0:02:44.8]} 15...
Nc4 {[%clk 0:02:46.2]} 16. Qc2 {[%clk 0:02:41.9]} 16... a5 {[%clk 0:02:29.5]}
17. Bxc4 {[%clk 0:02:38.3]} 17... dxc4 {[%clk 0:02:09.6]} 18. Nxa5 {[%clk
0:02:38.4]} 18... Bxf4 {[%clk 0:02:09.4]} 19. exf4 {[%clk 0:02:35.2]} 19... Qd7
{[%clk 0:02:09.5]} 20. Ne4 {[%clk 0:02:24]} 20... Nxe4 {[%clk 0:02:05.3]} 21.
Qxe4 {[%clk 0:02:24.4]} 21... Bd5 {[%clk 0:02:03.1]} 22. Qe3 {[%clk 0:02:12.5]}
22... Rfe8 {[%clk 0:02:02.9]} 23. Qg3 {[%clk 0:02:09.8]} 23... Rxe1+ {[%clk
0:02:02.8]} 24. Rxe1 {[%clk 0:02:09.7]} 24... Re8 {[%clk 0:02:04.7]} 25. Re5
{[%clk 0:02:09.3]} 25... f6 {[%clk 0:02:05]} 26. Re3 {[%clk 0:02:10]} 26... Rxe3
{[%clk 0:02:04.3]} 27. Qxe3 {[%clk 0:02:06.5]} 27... Qf5 {[%clk 0:02:01]} 28. h3
{[%clk 0:02:01.8]} 28... Qg6 {[%clk 0:01:30.9]} 29. f3 {[%clk 0:01:53.2]} 29...
Qc2 {[%clk 0:01:31]} 30. Qe8+ {[%clk 0:01:49.1]} 30... Kh7 {[%clk 0:01:30.1]}
31. Nxc6 {[%clk 0:01:50.6]} 31... c3 {[%clk 0:01:23.1]} 32. Ne7 {[%clk
0:01:50.6]} 32... Qc1+ {[%clk 0:00:54.9]} 33. Kf2 {[%clk 0:01:49.7]} 33... Qc2+
{[%clk 0:00:48.8]} 34. Kg3 {[%clk 0:01:48.5]} 34... Qb3 {[%clk 0:00:42.4]} 35.
Qg6+ {[%clk 0:01:36.8]} 35... Kh8 {[%clk 0:00:42.8]} 36. Nf5 {[%clk 0:01:37.5]}
1-0

[Event "*** Titled Tuesday Blitz"]
[Site "Chess.com"]
[Date "2019.04.02"]
[Round "10"]
[White "Bryakin_Mikhail"]
[Black "SolidAsARook"]
[Result "1-0"]
[WhiteElo "2742"]
[BlackElo "2263"]
[TimeControl "180+2"]
[EndTime "16:16:24 PDT"]
[Termination "Bryakin_Mikhail won by resignation"]

1. d4 {[%clk 0:03:01.9]} 1... Nf6 {[%clk 0:03:00.3]} 2. c4 {[%clk 0:03:01.4]}
2... e6 {[%clk 0:03:01.5]} 3. g3 {[%clk 0:03:02.1]} 3... d5 {[%clk 0:03:01.1]}
4. Bg2 {[%clk 0:03:03.2]} 4... Be7 {[%clk 0:03:01.1]} 5. Nf3 {[%clk 0:03:04.7]}
5... O-O {[%clk 0:03:01.3]} 6. O-O {[%clk 0:03:06.3]} 6... dxc4 {[%clk
0:03:02.6]} 7. Qc2 {[%clk 0:03:07.3]} 7... a6 {[%clk 0:03:03.1]} 8. a4 {[%clk
0:03:08.3]} 8... Nc6 {[%clk 0:02:57.3]} 9. Rd1 {[%clk 0:03:03.2]} 9... Nb4
{[%clk 0:02:48.8]} 10. Qxc4 {[%clk 0:03:04]} 10... b5 {[%clk 0:02:48]} 11. Qb3
{[%clk 0:03:05.1]} 11... Bb7 {[%clk 0:02:46]} 12. Nc3 {[%clk 0:03:03.4]} 12...
bxa4 {[%clk 0:02:19]} 13. Rxa4 {[%clk 0:02:52.6]} 13... a5 {[%clk 0:02:17.4]}
14. Bg5 {[%clk 0:02:43.1]} 14... h6 {[%clk 0:01:40.9]} 15. Bxf6 {[%clk
0:02:42.5]} 15... Bxf6 {[%clk 0:01:41.5]} 16. e3 {[%clk 0:02:39.5]} 16... Bc6
{[%clk 0:01:07.8]} 17. Ra3 {[%clk 0:02:34.4]} 17... Be7 {[%clk 0:01:04.1]} 18.
Ne5 {[%clk 0:02:32.5]} 18... Bxg2 {[%clk 0:01:03.8]} 19. Kxg2 {[%clk 0:02:34.4]}
19... Bd6 {[%clk 0:00:55.6]} 20. Nc4 {[%clk 0:02:26.9]} 20... Ra6 {[%clk
0:00:34]} 21. Kg1 {[%clk 0:02:18.4]} 21... Qa8 {[%clk 0:00:34.4]} 22. Rda1
{[%clk 0:02:19.8]} 22... Nc6 {[%clk 0:00:32.9]} 23. Nxd6 {[%clk 0:02:04.1]}
23... cxd6 {[%clk 0:00:32.2]} 24. d5 {[%clk 0:01:58.4]} 24... Rb8 {[%clk
0:00:32]} 25. Qd1 {[%clk 0:01:57.8]} 25... exd5 {[%clk 0:00:29.2]} 26. Qxd5
{[%clk 0:01:58.8]} 26... Rxb2 {[%clk 0:00:27.6]} 27. Qxd6 {[%clk 0:01:54]} 27...
Nb4 {[%clk 0:00:21.6]} 28. Qd7 {[%clk 0:01:29.8]} 28... Qf3 {[%clk 0:00:21.6]}
29. Rf1 {[%clk 0:01:31.2]} 29... Rf6 {[%clk 0:00:21.3]} 30. Nd1 {[%clk 0:01:23]}
30... Rd2 {[%clk 0:00:21.7]} 31. Qxd2 {[%clk 0:01:23.1]} 1-0

[Event "*** Titled Tuesday Blitz"]
[Site "Chess.com"]
[Date "2019.04.02"]
[Round "10"]
[White "SloLev"]
[Black "Quiet_Desperation"]
[Result "1-0"]
[WhiteElo "2489"]
[BlackElo "2413"]
[TimeControl "180+2"]
[EndTime "16:16:28 PDT"]
[Termination "SloLev won by resignation"]

1. e4 {[%clk 0:03:01.9]} 1... Nc6 {[%clk 0:03:00.5]} 2. d4 {[%clk 0:03:01.8]}
2... d5 {[%clk 0:03:01.2]} 3. exd5 {[%clk 0:03:02.3]} 3... Qxd5 {[%clk
0:03:02.2]} 4. Nf3 {[%clk 0:03:03.7]} 4... e5 {[%clk 0:03:03.3]} 5. dxe5 {[%clk
0:02:58.5]} 5... Qxd1+ {[%clk 0:03:04.4]} 6. Kxd1 {[%clk 0:03:00.4]} 6... Bg4
{[%clk 0:03:05.6]} 7. Be2 {[%clk 0:03:00.7]} 7... O-O-O+ {[%clk 0:03:02]} 8. Ke1
{[%clk 0:02:52]} 8... Bxf3 {[%clk 0:03:02.4]} 9. Bxf3 {[%clk 0:02:48.2]} 9...
Nxe5 {[%clk 0:03:03.2]} 10. Be2 {[%clk 0:02:48.4]} 10... Nf6 {[%clk 0:03:03.6]}
11. Nc3 {[%clk 0:02:49.3]} 11... Bb4 {[%clk 0:03:04.3]} 12. Bg5 {[%clk
0:02:46.1]} 12... Ne4 {[%clk 0:02:43.9]} 13. Bxd8 {[%clk 0:02:29.5]} 13... Nxc3
{[%clk 0:02:35.3]} 14. Bh4 {[%clk 0:02:26.1]} 14... Re8 {[%clk 0:02:14.6]} 15.
Bg5 {[%clk 0:01:17.5]} 15... Nc6 {[%clk 0:00:35.1]} 16. Be3 {[%clk 0:01:10.3]}
16... f5 {[%clk 0:00:30.1]} 17. g3 {[%clk 0:01:06.9]} 17... g5 {[%clk
0:00:29.6]} 18. Bh5 {[%clk 0:01:03.8]} 18... Re7 {[%clk 0:00:28.8]} 19. Kf1
{[%clk 0:01:02.2]} 19... Ne4 {[%clk 0:00:25.1]} 20. c3 {[%clk 0:01:00.8]} 20...
Bd6 {[%clk 0:00:24.2]} 21. Re1 {[%clk 0:01:01.2]} 21... Ne5 {[%clk 0:00:22.2]}
22. Be2 {[%clk 0:00:52.1]} 22... Rf7 {[%clk 0:00:14.8]} 23. f3 {[%clk
0:00:50.8]} 23... Nc5 {[%clk 0:00:13.8]} 24. Bxg5 {[%clk 0:00:49.2]} 1-0

[Event "*** Titled Tuesday Blitz"]
[Site "Chess.com"]
[Date "2019.04.02"]
[Round "10"]
[White "LaughingTiger"]
[Black "Eliwood44"]
[Result "0-1"]
[WhiteElo "2180"]
[BlackElo "2261"]
[TimeControl "180+2"]
[EndTime "16:16:42 PDT"]
[Termination "Eliwood44 won by checkmate"]

1. e4 {[%clk 0:03:01.9]} 1... e5 {[%clk 0:02:59.7]} 2. Nf3 {[%clk 0:03:02.4]}
2... Nc6 {[%clk 0:03:00.6]} 3. Bc4 {[%clk 0:03:04.1]} 3... Nf6 {[%clk
0:02:56.2]} 4. O-O {[%clk 0:03:04.7]} 4... Nxe4 {[%clk 0:02:52.8]} 5. d4 {[%clk
0:02:46.3]} 5... d5 {[%clk 0:02:40.1]} 6. Bb5 {[%clk 0:02:45.8]} 6... exd4
{[%clk 0:02:38.6]} 7. Nxd4 {[%clk 0:02:34.7]} 7... Bd7 {[%clk 0:02:16.7]} 8. Re1
{[%clk 0:02:30.5]} 8... Nxd4 {[%clk 0:02:08.7]} 9. Bxd7+ {[%clk 0:02:27.6]} 9...
Qxd7 {[%clk 0:02:10.6]} 10. Qxd4 {[%clk 0:02:28.4]} 10... Be7 {[%clk 0:02:09.1]}
11. Nc3 {[%clk 0:02:12.8]} 11... Nxc3 {[%clk 0:01:46.1]} 12. Qxg7 {[%clk
0:02:05.6]} 12... O-O-O {[%clk 0:01:39.7]} 13. Qxc3 {[%clk 0:02:05.4]} 13...
Rhg8 {[%clk 0:01:40.8]} 14. Bf4 {[%clk 0:01:59.8]} 14... Rg4 {[%clk 0:01:31.5]}
15. Bg3 {[%clk 0:01:56.7]} 15... h5 {[%clk 0:01:16.6]} 16. Qe3 {[%clk
0:01:50.7]} 16... Bd6 {[%clk 0:01:00.6]} 17. Qxa7 {[%clk 0:01:50.6]} 17... c6
{[%clk 0:00:59.5]} 18. Qa8+ {[%clk 0:01:48.7]} 18... Kc7 {[%clk 0:00:49.3]} 19.
Qa5+ {[%clk 0:01:50.2]} 19... Kb8 {[%clk 0:00:48.1]} 20. Qa3 {[%clk 0:01:32.7]}
20... Rxg3 {[%clk 0:00:46.3]} 21. Qxg3 {[%clk 0:01:20.4]} 21... Bxg3 {[%clk
0:00:45.2]} 22. hxg3 {[%clk 0:01:18.9]} 22... Re8 {[%clk 0:00:46.6]} 23. Kf1
{[%clk 0:01:19]} 23... Re6 {[%clk 0:00:41.7]} 24. Rxe6 {[%clk 0:01:16.3]} 24...
fxe6 {[%clk 0:00:40.4]} 25. f4 {[%clk 0:01:16.3]} 25... Qg7 {[%clk 0:00:34.4]}
26. Kf2 {[%clk 0:01:10.6]} 26... Qxb2 {[%clk 0:00:34.8]} 27. Re1 {[%clk
0:01:12.2]} 27... Qxc2+ {[%clk 0:00:35.9]} 28. Re2 {[%clk 0:01:13.7]} 28... Qc5+
{[%clk 0:00:36.8]} 29. Kf1 {[%clk 0:01:13.7]} 29... Qd6 {[%clk 0:00:36.4]} 30.
Kf2 {[%clk 0:01:10]} 30... c5 {[%clk 0:00:36.8]} 31. Kf3 {[%clk 0:01:11.3]}
31... c4 {[%clk 0:00:37.4]} 32. g4 {[%clk 0:01:12.8]} 32... hxg4+ {[%clk
0:00:37.8]} 33. Kxg4 {[%clk 0:01:14.7]} 33... c3 {[%clk 0:00:39.6]} 34. Kf3
{[%clk 0:01:15.3]} 34... d4 {[%clk 0:00:34.9]} 35. g4 {[%clk 0:01:13.1]} 35...
d3 {[%clk 0:00:35.8]} 36. Re1 {[%clk 0:01:14.3]} 36... d2 {[%clk 0:00:36.9]} 37.
Rh1 {[%clk 0:01:15.7]} 37... d1=Q+ {[%clk 0:00:37.6]} 38. Rxd1 {[%clk
0:01:17.3]} 38... Qxd1+ {[%clk 0:00:38.7]} 39. Ke3 {[%clk 0:01:19.2]} 39... c2
{[%clk 0:00:39.8]} 40. g5 {[%clk 0:01:21.1]} 40... c1=Q+ {[%clk 0:00:41.2]} 41.
Ke4 {[%clk 0:01:22.1]} 41... Qe2+ {[%clk 0:00:40.9]} 42. Kd4 {[%clk 0:01:22.4]}
42... Qcc4# {[%clk 0:00:42]} 0-1